[Event "Titled Tuesday Blitz July 18 Late 2023"]
[White "Adireddy Arjun"]
[Black "Kretchetov, Alexandre"]
[WhiteFideId "25647709"]
[BlackFideId "4124588"]
[WhiteElo "2334"]
[BlackElo "2583"]
[Result "1-0"]
[Round "1"]
[TimeControl "180+2"]
[Date "2023.07.18"]
[WhiteClock "0:00:03"]
[BlackClock "0:00:17"]
[Board "125"]

1. Nf3 {[%clk 0:02:57]}  Nf6 {[%clk 0:02:59]} 2. g3 {[%clk 0:02:52]}  b6 {[%clk 0:02:59]} 3. Bg2 {[%clk 0:02:52]}  Bb7 {[%clk 0:02:59]} 4. O-O {[%clk 0:02:50]}  g6 {[%clk 0:03:00]} 5. d4 {[%clk 0:02:50]}  Bg7 {[%clk 0:03:00]} 6. c4 {[%clk 0:02:51]}  O-O {[%clk 0:03:00]} 7. Nc3 {[%clk 0:02:51]}  Ne4 {[%clk 0:02:59]} 8. Qc2 {[%clk 0:02:50]}  Nxc3 {[%clk 0:02:54]} 9. bxc3 {[%clk 0:02:51]}  e6 {[%clk 0:02:49]} 10. e4 {[%clk 0:02:49]}  d6 {[%clk 0:02:44]} 11. a4 {[%clk 0:02:45]}  Nc6 {[%clk 0:02:43]} 12. Rd1 {[%clk 0:02:38]}  Na5 {[%clk 0:02:42]} 13. Nd2 {[%clk 0:02:37]}  a6 {[%clk 0:02:40]} 14. Ba3 {[%clk 0:02:35]}  Qe7 {[%clk 0:02:39]} 15. c5 {[%clk 0:02:25]}  bxc5 {[%clk 0:02:32]} 16. dxc5 {[%clk 0:02:26]}  dxc5 {[%clk 0:02:32]} 17. Nb3 {[%clk 0:02:25]}  Nxb3 {[%clk 0:02:32]} 18. Qxb3 {[%clk 0:02:26]}  Rfb8 {[%clk 0:02:25]} 19. Qc4 {[%clk 0:02:25]}  a5 {[%clk 0:02:19]} 20. Qxc5 {[%clk 0:02:08]}  Qxc5 {[%clk 0:02:18]} 21. Bxc5 {[%clk 0:02:09]}  Bxc3 {[%clk 0:02:16]} 22. Rac1 {[%clk 0:02:07]}  Bg7 {[%clk 0:02:10]} 23. Be3 {[%clk 0:02:04]}  c6 {[%clk 0:01:52]} 24. Rb1 {[%clk 0:02:01]}  Ba6 {[%clk 0:01:47]} 25. Bf4 {[%clk 0:01:55]}  Rxb1 {[%clk 0:01:44]} 26. Rxb1 {[%clk 0:01:55]}  Bc3 {[%clk 0:01:42]} 27. Rb6 {[%clk 0:01:51]}  Bb4 {[%clk 0:01:34]} 28. Rxc6 {[%clk 0:01:48]}  Bd3 {[%clk 0:01:34]} 29. Bf3 {[%clk 0:01:42]}  Rd8 {[%clk 0:01:28]} 30. Kg2 {[%clk 0:01:37]}  Re8 {[%clk 0:01:16]} 31. Be5 {[%clk 0:01:24]}  Rd8 {[%clk 0:01:07]} 32. Bf6 {[%clk 0:01:14]}  Rb8 {[%clk 0:01:07]} 33. Be5 {[%clk 0:01:09]}  Rd8 {[%clk 0:01:07]} 34. g4 {[%clk 0:01:04]}  h6 {[%clk 0:01:06]} 35. h4 {[%clk 0:01:01]}  Bb1 {[%clk 0:01:02]} 36. Rc1 {[%clk 0:00:52]}  Ba2 {[%clk 0:01:00]} 37. Bf6 {[%clk 0:00:51]}  Rb8 {[%clk 0:00:59]} 38. Be2 {[%clk 0:00:49]}  Bb3 {[%clk 0:00:56]} 39. Bb5 {[%clk 0:00:48]}  Bf8 {[%clk 0:00:51]} 40. Rc7 {[%clk 0:00:33]}  Ra8 {[%clk 0:00:50]} 41. g5 {[%clk 0:00:22]}  hxg5 {[%clk 0:00:50]} 42. hxg5 {[%clk 0:00:23]}  Rb8 {[%clk 0:00:50]} 43. Ra7 {[%clk 0:00:20]}  Bb4 {[%clk 0:00:49]} 44. Be5 {[%clk 0:00:19]}  Rd8 {[%clk 0:00:49]} 45. Bf6 {[%clk 0:00:15]}  Rb8 {[%clk 0:00:48]} 46. Rc7 {[%clk 0:00:14]}  Bd1 {[%clk 0:00:46]} 47. Kg3 {[%clk 0:00:13]}  Bb3 {[%clk 0:00:46]} 48. f4 {[%clk 0:00:12]}  Bf8 {[%clk 0:00:41]} 49. Ra7 {[%clk 0:00:11]}  Bb4 {[%clk 0:00:40]} 50. Rd7 {[%clk 0:00:12]}  Bc2 {[%clk 0:00:38]} 51. Kf3 {[%clk 0:00:07]}  Rc8 {[%clk 0:00:36]} 52. Ba6 {[%clk 0:00:05]}  Rb8 {[%clk 0:00:36]} 53. Rc7 {[%clk 0:00:04]}  Bb3 {[%clk 0:00:35]} 54. Rc1 {[%clk 0:00:05]}  Bxa4 {[%clk 0:00:32]} 55. Rh1 {[%clk 0:00:04]}  Bd1+ {[%clk 0:00:24]} 56. Rxd1 {[%clk 0:00:04]}  Bf8 {[%clk 0:00:22]} 57. Rd8 {[%clk 0:00:04]}  Rxd8 {[%clk 0:00:20]} 58. Bxd8 {[%clk 0:00:05]}  a4 {[%clk 0:00:21]} 59. Bc4 {[%clk 0:00:04]}  a3 {[%clk 0:00:21]} 60. Ke3 {[%clk 0:00:03]}  Bb4 {[%clk 0:00:22]} 61. Kd3 {[%clk 0:00:03]}  Bc5 {[%clk 0:00:22]} 62. Bf6 {[%clk 0:00:03]}  Kf8 {[%clk 0:00:21]} 63. Bd4 {[%clk 0:00:03]}  Bd6 {[%clk 0:00:20]} 64. e5 {[%clk 0:00:03]}  Bb4 {[%clk 0:00:21]} 65. Kc2 {[%clk 0:00:03]}  Ke8 {[%clk 0:00:21]} 66. Be3 {[%clk 0:00:02]}  Kd8 {[%clk 0:00:21]} 67. Kb3 {[%clk 0:00:03]}  Be7 {[%clk 0:00:20]} 68. Bc1 {[%clk 0:00:04]}  Bc5 {[%clk 0:00:19]} 69. Bb5 {[%clk 0:00:03]}  Be3 {[%clk 0:00:20]} 70. Bxe3 {[%clk 0:00:03]}  a2 {[%clk 0:00:17]} 71. Kxa2 {[%clk 0:00:03]} 1-0


[Site "https://www.chess.com"]

[Event "Titled Tuesday Blitz July 18 Late 2023"]
[White "Fonseca Manrique, Enrique"]
[Black "Arias Igual, Alejandro"]
[WhiteFideId "5114330"]
[BlackFideId "2254905"]
[WhiteElo "2582"]
[BlackElo "2331"]
[Result "1-0"]
[Round "1"]
[TimeControl "180+2"]
[Date "2023.07.18"]
[WhiteClock "0:00:31"]
[BlackClock "0:00:00"]
[Board "126"]

1. e4 {[%clk 0:02:59]}  c5 {[%clk 0:02:59]} 2. Nc3 {[%clk 0:02:59]}  Nc6 {[%clk 0:02:58]} 3. f4 {[%clk 0:03:00]}  g6 {[%clk 0:02:57]} 4. Nf3 {[%clk 0:03:00]}  Bg7 {[%clk 0:02:57]} 5. Bb5 {[%clk 0:02:56]}  Nd4 {[%clk 0:02:57]} 6. Ba4 {[%clk 0:02:55]}  e6 {[%clk 0:02:54]} 7. O-O {[%clk 0:02:55]}  Ne7 {[%clk 0:02:52]} 8. d3 {[%clk 0:02:55]}  O-O {[%clk 0:02:51]} 9. Bb3 {[%clk 0:02:56]}  Nxb3 {[%clk 0:02:48]} 10. axb3 {[%clk 0:02:57]}  d6 {[%clk 0:02:47]} 11. Qe1 {[%clk 0:02:56]}  Nc6 {[%clk 0:02:45]} 12. Be3 {[%clk 0:02:50]}  Nd4 {[%clk 0:02:41]} 13. Qf2 {[%clk 0:02:49]}  Nc6 {[%clk 0:02:12]} 14. d4 {[%clk 0:02:29]}  cxd4 {[%clk 0:02:13]} 15. Nxd4 {[%clk 0:02:30]}  Bd7 {[%clk 0:02:04]} 16. Ndb5 {[%clk 0:02:18]}  Qe7 {[%clk 0:01:52]} 17. Rfd1 {[%clk 0:02:10]}  a6 {[%clk 0:01:47]} 18. Nxd6 {[%clk 0:02:08]}  f6 {[%clk 0:01:14]} 19. Nxb7 {[%clk 0:01:58]}  Rfc8 {[%clk 0:00:55]} 20. Nd6 {[%clk 0:01:56]}  Rd8 {[%clk 0:00:52]} 21. Bb6 {[%clk 0:01:50]}  e5 {[%clk 0:00:41]} 22. Bxd8 {[%clk 0:01:28]}  Rxd8 {[%clk 0:00:42]} 23. fxe5 {[%clk 0:01:26]}  fxe5 {[%clk 0:00:39]} 24. Nc4 {[%clk 0:01:05]}  Nd4 {[%clk 0:00:33]} 25. Nd5 {[%clk 0:00:58]}  Qc5 {[%clk 0:00:29]} 26. Kh1 {[%clk 0:00:49]}  Rf8 {[%clk 0:00:27]} 27. Qd2 {[%clk 0:00:43]}  Bc6 {[%clk 0:00:17]} 28. Rf1 {[%clk 0:00:39]}  Rd8 {[%clk 0:00:13]} 29. Rxa6 {[%clk 0:00:34]}  Ne6 {[%clk 0:00:00]} 30. Rxc6 {[%clk 0:00:31]} 1-0


[Site "https://www.chess.com"]

[Event "Titled Tuesday Blitz July 18 Late 2023"]
[White "Alain_Otero"]
[Black "Ozates, Tuna"]
[BlackFideId "6354521"]
[WhiteElo "2330"]
[BlackElo "2582"]
[Result "0-1"]
[Round "1"]
[TimeControl "180+2"]
[Date "2023.07.18"]
[WhiteClock "0:00:00"]
[BlackClock "0:00:36"]
[Board "127"]

1. e4 {[%clk 0:02:59]}  c5 {[%clk 0:02:55]} 2. Nf3 {[%clk 0:02:58]}  Nc6 {[%clk 0:02:55]} 3. d4 {[%clk 0:02:58]}  cxd4 {[%clk 0:02:56]} 4. Nxd4 {[%clk 0:02:59]}  Nf6 {[%clk 0:02:56]} 5. Nc3 {[%clk 0:02:58]}  e5 {[%clk 0:02:57]} 6. Ndb5 {[%clk 0:02:58]}  d6 {[%clk 0:02:56]} 7. Bg5 {[%clk 0:02:58]}  a6 {[%clk 0:02:56]} 8. Na3 {[%clk 0:02:58]}  b5 {[%clk 0:02:56]} 9. Nd5 {[%clk 0:02:58]}  Be7 {[%clk 0:02:56]} 10. Bxf6 {[%clk 0:02:57]}  Bxf6 {[%clk 0:02:57]} 11. c3 {[%clk 0:02:58]}  O-O {[%clk 0:02:56]} 12. Nc2 {[%clk 0:02:58]}  Bg5 {[%clk 0:02:56]} 13. a4 {[%clk 0:02:57]}  Rb8 {[%clk 0:02:55]} 14. axb5 {[%clk 0:02:45]}  axb5 {[%clk 0:02:56]} 15. Be2 {[%clk 0:02:42]}  Kh8 {[%clk 0:02:56]} 16. O-O {[%clk 0:02:34]}  g6 {[%clk 0:02:53]} 17. Ncb4 {[%clk 0:02:19]}  Bd7 {[%clk 0:02:47]} 18. Ra6 {[%clk 0:02:09]}  Qc8 {[%clk 0:02:33]} 19. Nb6 {[%clk 0:01:54]}  Qb7 {[%clk 0:02:17]} 20. Nxd7 {[%clk 0:01:49]}  Nxb4 {[%clk 0:02:16]} 21. Rxd6 {[%clk 0:01:40]}  Be7 {[%clk 0:02:11]} 22. Rd2 {[%clk 0:01:34]}  Nc6 {[%clk 0:02:04]} 23. Nxb8 {[%clk 0:01:24]}  Rxb8 {[%clk 0:02:05]} 24. Qb3 {[%clk 0:01:24]}  Kg8 {[%clk 0:02:03]} 25. Rfd1 {[%clk 0:01:23]}  Qb6 {[%clk 0:02:01]} 26. Rd7 {[%clk 0:01:13]}  b4 {[%clk 0:01:39]} 27. Bc4 {[%clk 0:00:42]}  Rf8 {[%clk 0:01:33]} 28. Bd5 {[%clk 0:00:32]}  Na5 {[%clk 0:01:24]} 29. Qa2 {[%clk 0:00:20]}  b3 {[%clk 0:01:21]} 30. Qa4 {[%clk 0:00:11]}  Bc5 {[%clk 0:01:21]} 31. Rf1 {[%clk 0:00:11]}  h5 {[%clk 0:01:16]} 32. g3 {[%clk 0:00:11]}  h4 {[%clk 0:01:16]} 33. Kg2 {[%clk 0:00:10]}  hxg3 {[%clk 0:01:16]} 34. hxg3 {[%clk 0:00:09]}  Kg7 {[%clk 0:01:15]} 35. Qa1 {[%clk 0:00:08]}  Kf6 {[%clk 0:01:02]} 36. Rh1 {[%clk 0:00:05]}  Nc6 {[%clk 0:00:54]} 37. Qd1 {[%clk 0:00:04]}  Ne7 {[%clk 0:00:53]} 38. Qf3+ {[%clk 0:00:04]}  Kg7 {[%clk 0:00:54]} 39. Bc4 {[%clk 0:00:03]}  Qc6 {[%clk 0:00:50]} 40. Ra7 {[%clk 0:00:02]}  Bxa7 {[%clk 0:00:50]} 41. Bxf7 {[%clk 0:00:02]}  Nf5 {[%clk 0:00:39]} 42. exf5 {[%clk 0:00:02]}  Qxf3+ {[%clk 0:00:39]} 43. Kxf3 {[%clk 0:00:02]}  Rxf7 {[%clk 0:00:39]} 44. Ke4 {[%clk 0:00:01]}  Rxf5 {[%clk 0:00:39]} 45. f3 {[%clk 0:00:00]}  Rf7 {[%clk 0:00:36]} 0-1


[Site "https://www.chess.com"]

[Event "Titled Tuesday Blitz July 18 Late 2023"]
[White "Tarhan, Adar"]
[Black "Vifleemskaia, Svetlana"]
[WhiteFideId "34544712"]
[BlackFideId "4129490"]
[WhiteElo "2580"]
[BlackElo "2330"]
[Result "1-0"]
[Round "1"]
[TimeControl "180+2"]
[Date "2023.07.18"]
[WhiteClock "0:01:14"]
[BlackClock "0:00:00"]
[Board "128"]

1. d4 {[%clk 0:02:59]}  Nf6 {[%clk 0:02:59]} 2. c3 {[%clk 0:03:00]}  d5 {[%clk 0:02:59]} 3. Bg5 {[%clk 0:03:00]}  Ne4 {[%clk 0:02:59]} 4. Bf4 {[%clk 0:03:00]}  c5 {[%clk 0:02:58]} 5. e3 {[%clk 0:02:59]}  Nc6 {[%clk 0:02:58]} 6. Nd2 {[%clk 0:02:59]}  Bf5 {[%clk 0:02:57]} 7. Nxe4 {[%clk 0:02:58]}  Bxe4 {[%clk 0:02:56]} 8. f3 {[%clk 0:02:59]}  Bg6 {[%clk 0:02:56]} 9. Bb5 {[%clk 0:02:57]}  a6 {[%clk 0:02:54]} 10. Bxc6+ {[%clk 0:02:57]}  bxc6 {[%clk 0:02:55]} 11. h4 {[%clk 0:02:54]}  h6 {[%clk 0:02:53]} 12. h5 {[%clk 0:02:54]}  Bh7 {[%clk 0:02:52]} 13. dxc5 {[%clk 0:02:51]}  f6 {[%clk 0:02:41]} 14. b4 {[%clk 0:02:50]}  e5 {[%clk 0:02:41]} 15. Bg3 {[%clk 0:02:50]}  a5 {[%clk 0:02:42]} 16. a3 {[%clk 0:02:49]}  Be7 {[%clk 0:02:34]} 17. Nh3 {[%clk 0:02:45]}  Qd7 {[%clk 0:02:23]} 18. Nf2 {[%clk 0:02:39]}  O-O {[%clk 0:02:22]} 19. e4 {[%clk 0:02:30]}  Ra6 {[%clk 0:02:06]} 20. Qd3 {[%clk 0:02:27]}  Rfa8 {[%clk 0:02:05]} 21. Rd1 {[%clk 0:02:18]}  axb4 {[%clk 0:02:01]} 22. axb4 {[%clk 0:02:18]}  Ra3 {[%clk 0:01:56]} 23. O-O {[%clk 0:02:16]}  d4 {[%clk 0:01:56]} 24. Qc4+ {[%clk 0:02:14]}  Kh8 {[%clk 0:01:54]} 25. cxd4 {[%clk 0:02:15]}  Bg8 {[%clk 0:01:54]} 26. d5 {[%clk 0:02:15]}  Rd8 {[%clk 0:01:39]} 27. Qc1 {[%clk 0:02:03]}  Rb3 {[%clk 0:01:34]} 28. d6 {[%clk 0:01:59]}  Bf8 {[%clk 0:01:34]} 29. Qd2 {[%clk 0:01:53]}  Rb8 {[%clk 0:01:30]} 30. Rb1 {[%clk 0:01:53]}  Qb7 {[%clk 0:01:25]} 31. Rxb3 {[%clk 0:01:52]}  Bxb3 {[%clk 0:01:25]} 32. Rb1 {[%clk 0:01:52]}  Be6 {[%clk 0:01:25]} 33. Nd3 {[%clk 0:01:50]}  Qb5 {[%clk 0:01:23]} 34. Bf2 {[%clk 0:01:43]}  Bc4 {[%clk 0:01:10]} 35. Ne1 {[%clk 0:01:36]}  Ra8 {[%clk 0:01:09]} 36. Nc2 {[%clk 0:01:32]}  Kh7 {[%clk 0:00:59]} 37. g4 {[%clk 0:01:28]}  g5 {[%clk 0:00:55]} 38. hxg6+ {[%clk 0:01:28]}  Kxg6 {[%clk 0:00:55]} 39. Ne3 {[%clk 0:01:27]}  Be6 {[%clk 0:00:52]} 40. Nf5 {[%clk 0:01:26]}  h5 {[%clk 0:00:51]} 41. Nh4+ {[%clk 0:01:25]}  Kf7 {[%clk 0:00:50]} 42. gxh5 {[%clk 0:01:26]}  Ra2 {[%clk 0:00:37]} 43. Qd1 {[%clk 0:01:19]}  Bh6 {[%clk 0:00:35]} 44. d7 {[%clk 0:01:18]}  Rd2 {[%clk 0:00:22]} 45. Qxd2 {[%clk 0:01:13]}  Bxd2 {[%clk 0:00:00]} 46. d8=Q {[%clk 0:01:14]} 1-0


[Site "https://www.chess.com"]

[Event "Titled Tuesday Blitz July 18 Late 2023"]
[White "Lopez Idarraga, Daniel Eduardo"]
[Black "Bartel, Michal"]
[WhiteFideId "4405501"]
[BlackFideId "1119257"]
[WhiteElo "2307"]
[BlackElo "2569"]
[Result "0-1"]
[Round "1"]
[TimeControl "180+2"]
[Date "2023.07.18"]
[WhiteClock "0:00:00"]
[BlackClock "0:00:20"]
[Board "135"]

1. d4 {[%clk 0:03:00]}  Nf6 {[%clk 0:02:59]} 2. Bf4 {[%clk 0:02:58]}  c5 {[%clk 0:02:59]} 3. e3 {[%clk 0:02:58]}  Qb6 {[%clk 0:02:58]} 4. Na3 {[%clk 0:02:57]}  d6 {[%clk 0:02:54]} 5. Nc4 {[%clk 0:02:57]}  Qc6 {[%clk 0:02:46]} 6. a4 {[%clk 0:02:54]}  Nbd7 {[%clk 0:02:43]} 7. Nf3 {[%clk 0:02:50]}  Nh5 {[%clk 0:02:30]} 8. Bg5 {[%clk 0:02:49]}  h6 {[%clk 0:02:29]} 9. Bh4 {[%clk 0:02:49]}  g5 {[%clk 0:02:30]} 10. Nfd2 {[%clk 0:02:40]}  Ndf6 {[%clk 0:02:22]} 11. Bg3 {[%clk 0:01:31]}  Nxg3 {[%clk 0:02:19]} 12. hxg3 {[%clk 0:01:31]}  Bd7 {[%clk 0:02:12]} 13. Be2 {[%clk 0:01:29]}  Bg7 {[%clk 0:02:06]} 14. Bf3 {[%clk 0:01:25]}  Qc7 {[%clk 0:02:06]} 15. c3 {[%clk 0:01:23]}  O-O {[%clk 0:02:01]} 16. O-O {[%clk 0:01:22]}  Rac8 {[%clk 0:02:00]} 17. b4 {[%clk 0:01:21]}  b6 {[%clk 0:01:57]} 18. b5 {[%clk 0:01:19]}  Be6 {[%clk 0:01:54]} 19. Bc6 {[%clk 0:01:15]}  Bd5 {[%clk 0:01:42]} 20. Bxd5 {[%clk 0:01:09]}  Nxd5 {[%clk 0:01:43]} 21. Rc1 {[%clk 0:00:59]}  Qd7 {[%clk 0:01:39]} 22. Qf3 {[%clk 0:00:56]}  e6 {[%clk 0:01:35]} 23. e4 {[%clk 0:00:54]}  Ne7 {[%clk 0:01:32]} 24. g4 {[%clk 0:00:50]}  Ng6 {[%clk 0:01:32]} 25. g3 {[%clk 0:00:49]}  cxd4 {[%clk 0:01:31]} 26. cxd4 {[%clk 0:00:48]}  Bxd4 {[%clk 0:01:30]} 27. Rfd1 {[%clk 0:00:47]}  Qe7 {[%clk 0:01:17]} 28. Nb3 {[%clk 0:00:42]}  Bg7 {[%clk 0:01:13]} 29. a5 {[%clk 0:00:37]}  Rxc4 {[%clk 0:01:09]} 30. Rxc4 {[%clk 0:00:36]}  Ne5 {[%clk 0:01:10]} 31. Qe2 {[%clk 0:00:35]}  Nxc4 {[%clk 0:01:10]} 32. Qxc4 {[%clk 0:00:36]}  bxa5 {[%clk 0:01:10]} 33. Nxa5 {[%clk 0:00:35]}  Qd7 {[%clk 0:00:53]} 34. Qc6 {[%clk 0:00:34]}  Qxc6 {[%clk 0:00:45]} 35. Nxc6 {[%clk 0:00:35]}  Ra8 {[%clk 0:00:40]} 36. Rxd6 {[%clk 0:00:31]}  Bf8 {[%clk 0:00:41]} 37. Rd8 {[%clk 0:00:28]}  Rxd8 {[%clk 0:00:40]} 38. Nxd8 {[%clk 0:00:29]}  Bc5 {[%clk 0:00:39]} 39. Nc6 {[%clk 0:00:30]}  Kf8 {[%clk 0:00:38]} 40. Kf1 {[%clk 0:00:30]}  Ke8 {[%clk 0:00:38]} 41. Ke2 {[%clk 0:00:27]}  f6 {[%clk 0:00:35]} 42. f4 {[%clk 0:00:26]}  Kd7 {[%clk 0:00:36]} 43. e5 {[%clk 0:00:18]}  f5 {[%clk 0:00:33]} 44. gxf5 {[%clk 0:00:16]}  exf5 {[%clk 0:00:34]} 45. Kf3 {[%clk 0:00:13]}  g4+ {[%clk 0:00:34]} 46. Kg2 {[%clk 0:00:10]}  h5 {[%clk 0:00:33]} 47. Na5 {[%clk 0:00:08]}  Ke6 {[%clk 0:00:32]} 48. Nb7 {[%clk 0:00:05]}  Be3 {[%clk 0:00:30]} 49. Nd6 {[%clk 0:00:05]}  h4 {[%clk 0:00:29]} 50. Nc4 {[%clk 0:00:04]}  Bc1 {[%clk 0:00:26]} 51. Na5 {[%clk 0:00:03]}  Kd5 {[%clk 0:00:21]} 52. Nc6 {[%clk 0:00:03]}  Be3 {[%clk 0:00:20]} 53. Nd8 {[%clk 0:00:03]}  h3+ {[%clk 0:00:20]} 54. Kh2 {[%clk 0:00:03]}  Kc5 {[%clk 0:00:20]} 55. e6 {[%clk 0:00:00]}  Kd6 {[%clk 0:00:20]} 0-1


[Site "https://www.chess.com"]

[Event "Titled Tuesday Blitz July 18 Late 2023"]
[White "Altman, Joshua"]
[Black "Barwinska, Ewa"]
[WhiteFideId "426210"]
[BlackFideId "21833761"]
[WhiteElo "2569"]
[BlackElo "2302"]
[Result "1/2-1/2"]
[Round "1"]
[TimeControl "180+2"]
[Date "2023.07.18"]
[WhiteClock "0:00:06"]
[BlackClock "0:00:45"]
[Board "136"]

1. Nf3 {[%clk 0:03:00]}  d5 {[%clk 0:02:52]} 2. b3 {[%clk 0:02:58]}  Nd7 {[%clk 0:02:46]} 3. Bb2 {[%clk 0:02:58]}  Ngf6 {[%clk 0:02:45]} 4. e3 {[%clk 0:02:54]}  c5 {[%clk 0:02:43]} 5. c4 {[%clk 0:02:53]}  e6 {[%clk 0:02:43]} 6. Be2 {[%clk 0:02:49]}  Be7 {[%clk 0:02:41]} 7. O-O {[%clk 0:02:49]}  O-O {[%clk 0:02:41]} 8. Nc3 {[%clk 0:02:46]}  b6 {[%clk 0:02:35]} 9. cxd5 {[%clk 0:02:44]}  exd5 {[%clk 0:02:33]} 10. d4 {[%clk 0:02:44]}  Bb7 {[%clk 0:02:31]} 11. Rc1 {[%clk 0:02:42]}  Ne4 {[%clk 0:02:30]} 12. dxc5 {[%clk 0:02:36]}  Ndxc5 {[%clk 0:02:26]} 13. Nd4 {[%clk 0:02:23]}  Bf6 {[%clk 0:02:19]} 14. Nxe4 {[%clk 0:02:18]}  Nxe4 {[%clk 0:02:20]} 15. Bf3 {[%clk 0:02:13]}  Rc8 {[%clk 0:02:16]} 16. Qd3 {[%clk 0:02:06]}  Qd7 {[%clk 0:02:08]} 17. h3 {[%clk 0:02:06]}  Ng5 {[%clk 0:02:07]} 18. Bg4 {[%clk 0:02:04]}  Ne6 {[%clk 0:02:00]} 19. Rxc8 {[%clk 0:01:53]}  Rxc8 {[%clk 0:01:54]} 20. Nxe6 {[%clk 0:01:20]}  fxe6 {[%clk 0:01:55]} 21. Bxf6 {[%clk 0:01:20]}  gxf6 {[%clk 0:01:56]} 22. e4 {[%clk 0:01:16]}  d4 {[%clk 0:01:51]} 23. Rd1 {[%clk 0:01:11]}  Rd8 {[%clk 0:01:46]} 24. Qc4 {[%clk 0:01:07]}  Kf7 {[%clk 0:01:43]} 25. e5 {[%clk 0:00:48]}  Qd5 {[%clk 0:01:25]} 26. Qxd5 {[%clk 0:00:20]}  Rxd5 {[%clk 0:01:26]} 27. exf6 {[%clk 0:00:20]}  Kxf6 {[%clk 0:01:27]} 28. Bf3 {[%clk 0:00:20]}  Rd7 {[%clk 0:01:22]} 29. Bxb7 {[%clk 0:00:20]}  Rxb7 {[%clk 0:01:23]} 30. Rxd4 {[%clk 0:00:21]}  Rc7 {[%clk 0:01:22]} 31. Rd2 {[%clk 0:00:20]}  b5 {[%clk 0:01:13]} 32. f3 {[%clk 0:00:12]}  Kf5 {[%clk 0:01:11]} 33. Kf2 {[%clk 0:00:12]}  e5 {[%clk 0:01:10]} 34. Ke3 {[%clk 0:00:12]}  Rc3+ {[%clk 0:01:09]} 35. Ke2 {[%clk 0:00:12]}  Kf4 {[%clk 0:01:09]} 36. Kf2 {[%clk 0:00:11]}  Rc5 {[%clk 0:01:05]} 37. g3+ {[%clk 0:00:11]}  Kf5 {[%clk 0:01:05]} 38. Re2 {[%clk 0:00:10]}  a5 {[%clk 0:01:05]} 39. Rd2 {[%clk 0:00:10]}  a4 {[%clk 0:01:01]} 40. bxa4 {[%clk 0:00:09]}  bxa4 {[%clk 0:01:02]} 41. g4+ {[%clk 0:00:05]}  Kf4 {[%clk 0:01:00]} 42. Re2 {[%clk 0:00:05]}  a3 {[%clk 0:00:57]} 43. Re4+ {[%clk 0:00:05]}  Kg5 {[%clk 0:00:57]} 44. Re2 {[%clk 0:00:04]}  Rb5 {[%clk 0:00:56]} 45. Ke3 {[%clk 0:00:03]}  Kh4 {[%clk 0:00:50]} 46. Kd3 {[%clk 0:00:01]}  Kxh3 {[%clk 0:00:49]} 47. Kc4 {[%clk 0:00:01]}  Rb2 {[%clk 0:00:48]} 48. Rxe5 {[%clk 0:00:02]}  Rxa2 {[%clk 0:00:48]} 49. Kb3 {[%clk 0:00:02]}  Rf2 {[%clk 0:00:45]} 50. Rh5+ {[%clk 0:00:03]}  Kg3 {[%clk 0:00:44]} 51. Rxh7 {[%clk 0:00:03]}  Rxf3+ {[%clk 0:00:44]} 52. Ka2 {[%clk 0:00:04]}  Kxg4 {[%clk 0:00:45]} 53. Ra7 {[%clk 0:00:05]}  Kf4 {[%clk 0:00:44]} 54. Rxa3 {[%clk 0:00:05]}  Rxa3+ {[%clk 0:00:45]} 55. Kxa3 {[%clk 0:00:06]} 1/2-1/2


[Site "https://www.chess.com"]

[Event "Titled Tuesday Blitz July 18 Late 2023"]
[White "Garmendiarov"]
[Black "Grebeniuk, Semen"]
[BlackFideId "14117509"]
[WhiteElo "2301"]
[BlackElo "2568"]
[Result "0-1"]
[Round "1"]
[TimeControl "180+2"]
[Date "2023.07.18"]
[WhiteClock "0:00:02"]
[BlackClock "0:00:59"]
[Board "137"]

1. e4 {[%clk 0:02:59]}  c5 {[%clk 0:03:00]} 2. Nf3 {[%clk 0:02:58]}  Nc6 {[%clk 0:03:00]} 3. Bb5 {[%clk 0:02:58]}  g6 {[%clk 0:03:00]} 4. Bxc6 {[%clk 0:02:58]}  dxc6 {[%clk 0:03:01]} 5. d3 {[%clk 0:02:58]}  Bg7 {[%clk 0:03:01]} 6. h3 {[%clk 0:02:59]}  e5 {[%clk 0:02:59]} 7. Nc3 {[%clk 0:02:59]}  Nf6 {[%clk 0:02:59]} 8. Be3 {[%clk 0:02:59]}  Nd7 {[%clk 0:02:59]} 9. Qd2 {[%clk 0:03:00]}  h6 {[%clk 0:02:57]} 10. O-O {[%clk 0:02:59]}  Nf8 {[%clk 0:02:56]} 11. Bxc5 {[%clk 0:02:58]}  Ne6 {[%clk 0:02:56]} 12. Be3 {[%clk 0:02:52]}  b6 {[%clk 0:02:46]} 13. Nh2 {[%clk 0:02:46]}  g5 {[%clk 0:02:44]} 14. a4 {[%clk 0:02:24]}  Nf4 {[%clk 0:02:42]} 15. a5 {[%clk 0:02:16]}  Rb8 {[%clk 0:02:42]} 16. axb6 {[%clk 0:02:16]}  axb6 {[%clk 0:02:43]} 17. Ra7 {[%clk 0:02:04]}  O-O {[%clk 0:02:39]} 18. Nf3 {[%clk 0:01:35]}  Qf6 {[%clk 0:02:30]} 19. Bxf4 {[%clk 0:01:32]}  exf4 {[%clk 0:02:23]} 20. e5 {[%clk 0:01:25]}  Qf5 {[%clk 0:02:18]} 21. d4 {[%clk 0:01:15]}  Be6 {[%clk 0:02:15]} 22. Qd3 {[%clk 0:00:58]}  Qxd3 {[%clk 0:02:15]} 23. cxd3 {[%clk 0:00:59]}  Rfd8 {[%clk 0:02:16]} 24. Rfa1 {[%clk 0:00:55]}  c5 {[%clk 0:02:11]} 25. d5 {[%clk 0:00:37]}  Bxd5 {[%clk 0:02:10]} 26. Nxd5 {[%clk 0:00:37]}  Rxd5 {[%clk 0:02:11]} 27. Ra8 {[%clk 0:00:32]}  Rdd8 {[%clk 0:01:53]} 28. Rxb8 {[%clk 0:00:31]}  Rxb8 {[%clk 0:01:54]} 29. Kf1 {[%clk 0:00:28]}  b5 {[%clk 0:01:49]} 30. Rc1 {[%clk 0:00:24]}  Rc8 {[%clk 0:01:46]} 31. d4 {[%clk 0:00:19]}  c4 {[%clk 0:01:44]} 32. Ke2 {[%clk 0:00:18]}  f6 {[%clk 0:01:41]} 33. exf6 {[%clk 0:00:17]}  Bxf6 {[%clk 0:01:42]} 34. Ne5 {[%clk 0:00:17]}  Rd8 {[%clk 0:01:35]} 35. Nc6 {[%clk 0:00:14]}  Rd6 {[%clk 0:01:32]} 36. Ne5 {[%clk 0:00:11]}  Rxd4 {[%clk 0:01:29]} 37. Nf3 {[%clk 0:00:10]}  Re4+ {[%clk 0:01:27]} 38. Kd2 {[%clk 0:00:09]}  Bxb2 {[%clk 0:01:27]} 39. Rb1 {[%clk 0:00:09]}  c3+ {[%clk 0:01:28]} 40. Kd3 {[%clk 0:00:10]}  Re8 {[%clk 0:01:23]} 41. Nd4 {[%clk 0:00:08]}  b4 {[%clk 0:01:22]} 42. Kc2 {[%clk 0:00:07]}  Re4 {[%clk 0:01:20]} 43. Rd1 {[%clk 0:00:06]}  Kf7 {[%clk 0:01:15]} 44. f3 {[%clk 0:00:04]}  Re3 {[%clk 0:01:14]} 45. Kb3 {[%clk 0:00:04]}  Re8 {[%clk 0:01:03]} 46. Nf5 {[%clk 0:00:04]}  Re2 {[%clk 0:01:01]} 47. Nd6+ {[%clk 0:00:04]}  Ke6 {[%clk 0:01:00]} 48. Ne4 {[%clk 0:00:04]}  c2 {[%clk 0:00:59]} 49. Rd6+ {[%clk 0:00:05]}  Ke7 {[%clk 0:00:58]} 50. Rc6 {[%clk 0:00:06]}  c1=Q {[%clk 0:00:58]} 51. Rxc1 {[%clk 0:00:05]}  Bxc1 {[%clk 0:00:58]} 52. Kxb4 {[%clk 0:00:02]}  Rxg2 {[%clk 0:00:59]} 0-1


[Site "https://www.chess.com"]